fUST/lending_fUST_20240217
["ID","MTS","AMOUNT","RATE_DAILY","PERIOD"]
[314234518,1708109446369,-500.0,0.00027671,2]
[314234519,1708109446378,-499.83,0.00027671,2]
[314234522,1708109446388,-12747.65,0.00027671,2]
[314234524,1708109446397,-9742.87,0.00027671,2]
[314234525,1708109446406,-1146.09,0.00027671,2]
[314234527,1708109446416,-1785.14,0.00027671,2]
[314234529,1708109446426,-500.0,0.00027671,2]
[314234532,1708109446436,-500.0,0.00027671,2]
[314234533,1708109446445,-232.03608461,0.00027671,2]
[314234535,1708109446454,-500.0,0.00027671,2]
[314234538,1708109446464,-500.0,0.00027671,2]
[314234540,1708109446474,-500.0,0.00027671,2]
[314234542,1708109446483,-500.0,0.00027671,2]
[314234544,1708109446494,-624.09841432,0.00027671,2]
[314234546,1708109446503,-500.0,0.00027671,2]
[314234547,1708109446513,-500.0,0.00027671,2]
[314234550,1708109446522,-1475.67,0.00027671,2]
[314234551,1708109446532,-512.74,0.00027671,2]
[314234554,1708109446542,-500.0,0.00027671,2]
[314234556,1708109446555,-721.64,0.00027671,2]
[314234558,1708109446567,-500.0,0.00027671,2]
[314234560,1708109446580,-331.92161158,0.00027671,2]
[314234562,1708109446592,-962.54,0.00027671,2]
[314234563,1708109446602,-2019.67,0.00027671,2]
[314234565,1708109446612,-1126.97,0.00027671,2]
[314234567,1708109446621,-500.0,0.00027671,2]
[314234569,1708109446631,-350.7128037,0.00027671,2]
[314234571,1708109446641,-500.0,0.00027671,2]
[314234573,1708109446650,-1325.35,0.00027671,2]
[314234575,1708109446659,-2487.42,0.00027671,2]
[314234577,1708109446669,-500.0,0.00027671,2]
[314234579,1708109446678,-505.46231435,0.00027671,2]
[314234581,1708109446688,-10983.68,0.00027671,2]
[314234583,1708109446697,-500.0,0.00027671,2]
[314234585,1708109446707,-1164.36,0.00027671,2]
[314234587,1708109446716,-874.63,0.00027671,2]
[314234589,1708109446725,-1472.24,0.00027671,2]
[314234591,1708109446735,-300.0,0.0002773,2]
[314234593,1708109446745,-500.0,0.00027808,2]
[314234595,1708109446755,-1581.37473004,0.00027877,2]
[314234597,1708109446764,-500.0,0.00027945,2]
[314234599,1708109446774,-532.40122804,0.00027945,2]
[314234601,1708109446783,-1000.0,0.00027945,2]
[314234603,1708109446792,-500.0,0.00027945,2]
[314234604,1708109446802,-500.0,0.00027945,2]
[314234605,1708109446811,-500.0,0.00027945,2]
[314234606,1708109446821,-3591.58,0.00027945,2]
[314234607,1708109446831,-500.0,0.00027945,2]
[314234608,1708109446840,-500.0,0.00027945,2]
[314234609,1708109446851,-500.0,0.00027945,2]
[314234610,1708109446861,-555.14,0.00027945,2]
[314234611,1708109446871,-500.0,0.00027945,2]
[314234612,1708109446880,-500.0,0.00027945,2]
[314234613,1708109446890,-500.0,0.00027945,2]
[314234614,1708109446899,-1965.17,0.00027945,2]
[314234615,1708109446909,-500.0,0.00027945,2]
[314234616,1708109446918,-500.0,0.00027945,2]
[314234617,1708109446931,-1837.03,0.00027945,2]
[314234618,1708109446940,-500.0,0.00027945,2]
[314234619,1708109446950,-546.272416,0.00027945,2]
[314234620,1708109446960,-500.0,0.00027945,2]
[314234621,1708109446969,-1000.0,0.00027945,2]
[314234622,1708109446979,-500.0,0.00027945,2]
[314234623,1708109446988,-500.0,0.00027945,2]
[314234624,1708109446997,-569.92,0.00027945,2]
[314234625,1708109447006,-500.0,0.00027945,2]
[314234626,1708109447016,-505.81901091,0.00027945,2]
[314234627,1708109447025,-500.0,0.00027945,2]
[314234628,1708109447035,-797.84,0.00027945,2]
[314234629,1708109447044,-500.0,0.00027945,2]
[314234630,1708109447055,-500.0,0.00027945,2]
[314234631,1708109447064,-714.39,0.00027945,2]
[314234632,1708109447074,-636.06000824,0.00027945,2]
[314234633,1708109447084,-500.0,0.00027945,2]
[314234634,1708109447094,-500.0,0.00027945,2]
[314234635,1708109447104,-500.0,0.00027945,2]
[314234636,1708109447114,-510.65141927,0.00027945,2]
[314234637,1708109447124,-500.0,0.00027945,2]
[314234638,1708109447134,-500.0,0.00027945,2]
[314234639,1708109447148,-177.76093392,0.00027945,2]
[314234640,1708109447157,-576.54,0.00027945,2]
[314234641,1708109447167,-329.84382011,0.00027945,2]
[314234642,1708109447178,-500.0,0.00027945,2]
[314234643,1708109447187,-1574.34,0.00027945,2]
[314234644,1708109447197,-869.62,0.00027945,2]
[314234645,1708109447206,-1000.0,0.00027945,2]
[314234646,1708109447216,-1219.36,0.00027945,2]
[314234647,1708109447227,-500.0,0.00027945,2]
[314234648,1708109447238,-500.0,0.00027945,2]
[314234649,1708109447247,-500.0,0.00027945,2]
[314234650,1708109447257,-8755.61,0.00027945,2]
[314234651,1708109447267,-7586.1,0.00027945,2]
[314234652,1708109447277,-500.0,0.00027945,2]
[314234653,1708109447287,-5817.49,0.00027945,2]
[314234654,1708109447297,-1060.34,0.00027945,2]
[314234655,1708109447306,-2182.32,0.00027945,2]
[314234656,1708109447316,-1587.02,0.00027945,2]
[314234657,1708109447325,-1479.97,0.00027945,2]
[314234658,1708109447335,-908.23,0.00027945,2]
[314234659,1708109447344,-500.0,0.00027945,2]
[314234660,1708109447353,-983.13,0.00027945,2]
[314234661,1708109447362,-1268.03,0.00027945,2]
[314234662,1708109447371,-14609.34,0.00027945,2]
[314234663,1708109447381,-500.0,0.00027945,2]
[314234664,1708109447390,-12747.65,0.00027945,2]
[314234665,1708109447399,-9742.87,0.00027945,2]
[314234666,1708109447409,-1146.09,0.00027945,2]
[314234667,1708109447419,-1785.14,0.00027945,2]
[314234668,1708109447430,-500.0,0.00027945,2]
[314234669,1708109447440,-457.31117144,0.00027945,2]
[314234670,1708109447521,-188.73031809,0.00027945,2]
[314234671,1708109447531,-500.0,0.00027945,2]
[314234672,1708109447541,-500.0,0.00027945,2]
[314234673,1708109447551,-500.0,0.00027945,2]
[314234674,1708109447560,-500.0,0.00027945,2]
[314234675,1708109447570,-1475.67,0.00027945,2]
[314234676,1708109447579,-512.74,0.00027945,2]
[314234677,1708109447588,-500.0,0.00027945,2]
[314234678,1708109447597,-721.64,0.00027945,2]
[314234679,1708109447607,-500.0,0.00027945,2]
[314234680,1708109447616,-962.54,0.00027945,2]
[314234681,1708109447626,-2019.67,0.00027945,2]
[314234682,1708109447635,-1126.97,0.00027945,2]
[314234683,1708109447646,-504.47932965,0.00027945,2]
[314234684,1708109447655,-361.11680653,0.00027945,2]
[314234685,1708109447665,-1325.35,0.00027945,2]
[314234686,1708109447675,-2487.42,0.00027945,2]
[314234687,1708109447685,-618.0799608,0.00027945,2]
[314234688,1708109447695,-10983.68,0.00027945,2]
[314234689,1708109447705,-500.0,0.00027945,2]
[314234690,1708109447714,-1164.36,0.00027945,2]
[314234691,1708109447724,-874.63,0.00027945,2]
[314234692,1708109447734,-300.0,0.00028186,2]
[314234693,1708109447746,-151.01208097,0.00028206,2]
[314234694,1708109447756,-500.0,0.00028218,2]
[314234695,1708109447766,-410.6592984,0.00028218,2]
[314234696,1708109447776,-500.0,0.00028218,2]
[314234697,1708109447786,-500.0,0.00028218,2]
[314234698,1708109447796,-500.0,0.00028218,2]
[314234699,1708109447806,-227.46386237,0.00028218,2]
[314234700,1708109447816,-380.53489462,0.00028218,2]
[314234701,1708109447825,-500.0,0.00028218,2]
[314234702,1708109447835,-500.0,0.00028218,2]
[314234703,1708109447845,-500.0,0.00028218,2]
[314234704,1708109447855,-500.0,0.00028218,2]
[314234705,1708109447865,-500.0,0.00028218,2]
[314234706,1708109447875,-500.0,0.00028218,2]
[314234707,1708109447885,-500.0,0.00028218,2]
[314234708,1708109447895,-500.0,0.00028218,2]
[314234709,1708109447904,-500.0,0.00028218,2]
[314234710,1708109447913,-255.71708071,0.00028218,2]
[314234711,1708109447923,-500.0,0.00028218,2]
[314234712,1708109447932,-514.73626696,0.00028218,2]
[314234713,1708109447942,-500.0,0.00028218,2]
[314234714,1708109447951,-500.0,0.00028218,2]
[314234715,1708109447961,-500.0,0.00028218,2]
[314234716,1708109447970,-500.0,0.00028218,2]
[314234717,1708109447980,-500.0,0.00028218,2]
[314234718,1708109447991,-500.0,0.00028218,2]
[314234719,1708109447999,-580.0,0.00028218,2]
[314234720,1708109448009,-500.0,0.00028219,2]
[314234721,1708109448018,-1000.0,0.00028219,2]
[314234722,1708109448027,-500.0,0.00028219,2]
[314234723,1708109448038,-500.0,0.00028219,2]
[314234724,1708109448048,-3591.58,0.00028219,2]
[314234725,1708109448057,-500.0,0.00028219,2]
[314234726,1708109448067,-500.0,0.00028219,2]
[314234727,1708109448077,-500.0,0.00028219,2]
[314234728,1708109448086,-555.14,0.00028219,2]
[314234729,1708109448096,-500.0,0.00028219,2]
[314234730,1708109448105,-229.69975012,0.00028219,2]
[314234731,1708109448115,-500.0,0.00028219,2]
[314234732,1708109448124,-1965.17,0.00028219,2]
[314234733,1708109448134,-500.0,0.00028219,2]
[314234734,1708109448145,-534.47564354,0.00028219,2]
[314234735,1708109448156,-1837.03,0.00028219,2]
[314234736,1708109448165,-500.0,0.00028219,2]
[314234737,1708109448174,-500.0,0.00028219,2]
[314234738,1708109448184,-363.06786975,0.00028219,2]
[314234739,1708109448194,-500.0,0.00028219,2]
[314234740,1708109448203,-500.0,0.00028219,2]
[314234741,1708109448213,-569.92,0.00028219,2]
[314234742,1708109448224,-500.0,0.00028219,2]
[314234743,1708109448234,-500.0,0.00028219,2]
[314234745,1708109448246,-797.84,0.00028219,2]
[314234746,1708109448256,-500.0,0.00028219,2]
[314234749,1708109448266,-500.0,0.00028219,2]
[314234750,1708109448276,-714.39,0.00028219,2]
[314234753,1708109448288,-500.0,0.00028219,2]
[314234754,1708109448297,-500.0,0.00028219,2]
[314234756,1708109448307,-500.0,0.00028219,2]
[314234758,1708109448316,-500.0,0.00028219,2]
[314234759,1708109448326,-618.12,0.00028219,2]
[314234760,1708109448336,-576.54,0.00028219,2]
[314234762,1708109448345,-262.47761468,0.00028219,2]
[314234763,1708109448355,-1574.34,0.00028219,2]
[314234764,1708109448365,-869.62,0.00028219,2]
[314234765,1708109448375,-825.53269552,0.00028219,2]
[314234766,1708109448384,-1219.36,0.00028219,2]
[314234768,1708109448394,-500.0,0.00028219,2]
[314234769,1708109448403,-421.56178611,0.00028219,2]
[314234770,1708109448412,-8755.61,0.00028219,2]
[314234771,1708109448421,-7586.1,0.00028219,2]
[314234772,1708109448430,-196.88835892,0.00028219,2]
[314234773,1708109448440,-5817.49,0.00028219,2]
[314234774,1708109448449,-1060.34,0.00028219,2]
[314234775,1708109448458,-1572.31759764,0.00028219,2]
[314234776,1708109448652,-504.56881854,0.00027387,3]
[314234812,1708109665190,352.42850658,0.00021,2]
[314234816,1708110224987,500.0,0.0002,2]
[314234817,1708110251830,500.0,0.000211,2]
[314234848,1708110632388,-292.67609375,0.00021928,2]
[314234849,1708110632398,-488.59588161,0.00021928,2]
[314235014,1708110638327,-1426.53353647,0.00021928,2]
[314235015,1708110638339,-6070.91538479,0.00021928,2]
[314235016,1708110638348,-2660.64407594,0.00021929,2]
[314235017,1708110638385,-13929.0935111,0.00021929,2]
[314235018,1708110638394,-1938.41898656,0.00021929,2]
[314235019,1708110638404,-1004.82225937,0.00021929,2]
[314235020,1708110638412,-200.0,0.00023023,7]
[314235021,1708110638422,-208.465494,0.00023997,2]
[314235022,1708110638431,-166.666666,0.00024658,2]
[314235023,1708110638440,-20878.8577794,0.00024728,2]
[314235024,1708110638449,-4742.51638148,0.00025,2]
[314235025,1708110638458,-166.666666,0.00025235,2]
[314235026,1708110638471,-280.0,0.00025326,7]
[314235027,1708110638481,-166.666666,0.00025812,2]
[314235028,1708110638490,-168.980603,0.00025895,2]
[314235029,1708110638499,-166.666666,0.00026388,2]
[314235030,1708110638510,-230.5707347,0.00026506,2]
[314235031,1708110638520,-572.47579698,0.00026506,3]
[314235032,1708110638529,-166.666666,0.00026965,2]
[314235033,1708110638538,-4110.58,0.0002699,3]
[314235034,1708110638547,-3425.49,0.0002699,3]
[314235035,1708110638557,-4717.24958784,0.00027,2]
[314235036,1708110638568,-25766.37739187,0.00027,2]
[314235037,1708110638578,-403.4297338,0.00027178,2]
[314235038,1708110638587,-194.32809523,0.00027285,2]
[314235039,1708110638596,-1029.49833985,0.00027385,2]
[314235040,1708110638605,-154.94559609,0.00027396,2]
[314235084,1708110646455,-345.05440391,0.00027396,2]
[314235086,1708110646465,-500.0,0.00027396,2]
[314235087,1708110646475,-452.44309845,0.00027396,2]
[314235088,1708110646483,-500.0,0.00027396,2]
[314235089,1708110646493,-500.0,0.00027396,2]
[314235090,1708110646503,-500.0,0.00027396,2]
[314235091,1708110646512,-500.0,0.00027396,2]
[314235092,1708110646521,-288.05930492,0.00027396,2]
[314235093,1708110646529,-500.0,0.00027396,2]
[314235094,1708110646540,-537.63525522,0.00027396,2]
[314235095,1708110646550,-500.0,0.00027396,2]
[314235096,1708110646559,-500.0,0.00027396,2]
[314235097,1708110646569,-227.95532678,0.00027396,2]
[314235098,1708110646578,-442.49529597,0.00027396,2]
[314235099,1708110646587,-500.0,0.00027396,2]
[314235100,1708110646596,-500.0,0.00027396,2]
[314235101,1708110646605,-500.0,0.00027396,2]
[314235102,1708110646614,-155.26770188,0.00027396,2]
[314235103,1708110646623,-177.17308589,0.00027396,2]
[314235104,1708110646633,-500.0,0.00027396,2]
[314235105,1708110646642,-500.0,0.00027396,2]
[314235106,1708110646652,-500.0,0.00027396,2]
[314235107,1708110646662,-500.0,0.00027396,2]
[314235108,1708110646671,-500.0,0.00027396,2]
[314235109,1708110646680,-500.0,0.00027396,2]
[314235110,1708110646690,-500.0,0.00027396,2]
[314235111,1708110646699,-500.0,0.00027396,2]
[314235112,1708110646708,-500.0,0.00027396,2]
[314235113,1708110646717,-500.0,0.00027396,2]
[314235114,1708110646726,-500.0,0.00027396,2]
[314235115,1708110646746,-500.0,0.00027396,2]
[314235116,1708110646757,-500.0,0.00027396,2]
[314235117,1708110646767,-500.0,0.00027396,2]
[314235118,1708110646905,-500.0,0.00027396,2]
[314235119,1708110646919,-500.0,0.00027396,2]
[314235120,1708110646928,-500.0,0.00027396,2]
[314235121,1708110646937,-500.0,0.00027396,2]
[314235122,1708110646946,-500.0,0.00027396,2]
[314235123,1708110646956,-500.0,0.00027396,2]
[314235124,1708110646965,-500.0,0.00027396,2]
[314235125,1708110646974,-363.12266598,0.00027396,2]
[314235126,1708110646984,-500.0,0.00027396,2]
[314235127,1708110646993,-500.0,0.00027396,2]
[314235128,1708110647002,-500.0,0.00027396,2]
[314235129,1708110647012,-500.0,0.00027396,2]
[314235130,1708110647021,-500.0,0.00027396,2]
[314235131,1708110647031,-500.0,0.00027396,2]
[314235132,1708110647040,-500.0,0.00027396,2]
[314235133,1708110647049,-500.0,0.00027396,2]
[314235134,1708110647059,-500.0,0.00027396,2]
[314235135,1708110647068,-500.0,0.00027396,2]
[314235136,1708110647077,-500.0,0.00027396,2]
[314235137,1708110647086,-500.0,0.00027396,2]
[314235138,1708110647095,-500.0,0.00027396,2]
[314235139,1708110647104,-500.0,0.00027396,2]
[314235140,1708110647113,-500.0,0.00027396,2]
[314235141,1708110647122,-500.0,0.00027396,2]
[314235142,1708110647131,-500.0,0.00027396,2]
[314235143,1708110647140,-500.0,0.00027396,2]
[314235144,1708110647149,-500.0,0.00027396,2]
[314235145,1708110647157,-500.0,0.00027396,2]
[314235146,1708110647166,-500.0,0.00027396,2]
[314235147,1708110647176,-500.0,0.00027396,2]
[314235148,1708110647185,-650.0,0.00027396,2]
[314235149,1708110647196,-500.0,0.00027396,2]
[314235150,1708110647206,-500.0,0.00027396,2]
[314235151,1708110647215,-500.0,0.00027396,2]
[314235152,1708110647224,-500.0,0.00027396,2]
[314235153,1708110647234,-566.38138964,0.00027396,2]
[314235154,1708110647244,-526.06815245,0.00027396,2]
[314235155,1708110647253,-566.38138964,0.00027396,2]
[314235156,1708110647262,-566.38138964,0.00027396,2]
[314235157,1708110647272,-566.38138964,0.00027396,2]
[314235158,1708110647281,-566.38138964,0.00027396,2]
[314235159,1708110647290,-572.57325766,0.00027397,2]
[314235160,1708110647299,-500.0,0.00027397,2]
[314235161,1708110647308,-500.0,0.00027397,2]
[314235162,1708110647317,-500.0,0.00027397,2]
[314235163,1708110647326,-500.0,0.00027397,2]
[314235164,1708110647335,-500.0,0.00027397,2]
[314235165,1708110647344,-500.0,0.00027397,2]
[314235166,1708110647353,-1637.64,0.00027397,2]
[314235167,1708110647362,-724.68,0.00027397,2]
[314235168,1708110647373,-532.03957058,0.00027397,2]
[314235169,1708110647382,-1530.86,0.00027397,2]
[314235170,1708110647391,-500.0,0.00027397,2]
[314235171,1708110647400,-500.0,0.00027397,2]
[314235172,1708110647409,-235.0,0.00027397,2]
[314235173,1708110647418,-500.0,0.00027397,2]
[314235174,1708110647427,-500.0,0.00027397,2]
[314235175,1708110647437,-664.87,0.00027397,2]
[314235176,1708110647446,-595.33,0.00027397,2]
[314235177,1708110647455,-500.0,0.00027397,2]
[314235178,1708110647469,-500.0,0.00027397,2]
[314235179,1708110647478,-500.0,0.00027397,2]
[314235180,1708110647487,-500.0,0.00027397,2]
[314235181,1708110647497,-500.0,0.00027397,2]
[314235182,1708110647507,-155.0,0.00027397,2]
[314235183,1708110647517,-500.0,0.00027397,2]
[314235184,1708110647526,-500.0,0.00027397,2]
[314235185,1708110647536,-500.0,0.00027397,2]
[314235186,1708110647546,-500.0,0.00027397,2]
[314235187,1708110647555,-697.92,0.00027397,2]
[314235188,1708110647565,-842.22,0.00027397,2]
[314235189,1708110647574,-986.1,0.00027397,2]
[314235190,1708110647583,-1349.55,0.00027397,2]
[314235191,1708110647592,-1311.95,0.00027397,2]
[314235192,1708110647601,-9610.72,0.00027397,2]
[314235193,1708110647610,-500.0,0.00027397,2]
[314235194,1708110647620,-7296.34,0.00027397,2]
[314235195,1708110647630,-559.74,0.00027397,2]
[314235196,1708110647639,-1000.0,0.00027397,2]
[314235197,1708110647648,-860.24,0.00027397,2]
[314235198,1708110647658,-883.62,0.00027397,2]
[314235199,1708110647667,-6321.75,0.00027397,2]
[314235200,1708110647676,-1294.97,0.00027397,2]
[314235201,1708110647685,-1562.0,0.00027397,2]
[314235202,1708110647694,-405.93007005,0.00027397,2]
[314235203,1708110702967,500.0,0.00031,120]
[314235204,1708110703849,500.0,0.00031,120]
[314235205,1708110704557,500.0,0.00031,120]
[314235206,1708110705358,500.0,0.00031,120]
[314235207,1708110706161,543.49,0.00031,120]
[314235208,1708110772521,500.0,0.00031,120]
[314235209,1708110954480,207.53489538,0.00033,120]
[314235328,1708111839919,-292.67609375,0.00021927,2]
[314235329,1708111839929,-4153.54461741,0.00021928,2]
[314235337,1708111841841,-3832.50018546,0.00021928,2]
[314235338,1708111841851,-7275.58117556,0.00021929,2]
[314235339,1708111841868,-4663.00765811,0.00021929,2]
[314235340,1708111841882,-6191.9236261,0.00021929,2]
[314235341,1708111841897,-5828.41116448,0.00021929,2]
[314235342,1708111841910,-892.75362685,0.00021929,2]
[314235343,1708111841919,-2423.48172281,0.00021929,2]
[314235344,1708111841930,-1000.0,0.00021929,2]
[314235345,1708111841942,-6236.10589071,0.00021929,2]
[314235346,1708111841952,-200.0,0.00023024,7]
[314235347,1708111841962,-182.638265,0.00023334,2]
[314235348,1708111841971,-22630.6132675,0.00024021,2]
[314235349,1708111841984,-2269.3867325,0.00024021,2]
[314235350,1708111841993,-166.666666,0.00024658,2]
[314235351,1708111842002,-2902.91,0.0002498,3]
[314235352,1708111842011,-3483.49,0.0002499,3]
[314235353,1708111842021,-4742.51638148,0.00025,2]
[314235354,1708111842031,-187.27589186,0.00025135,2]
[314235355,1708111842040,-166.666666,0.00025235,2]
[314235356,1708111842051,-360.99822878,0.00025297,2]
[314235357,1708111842061,-280.0,0.00025327,7]
[314235358,1708111842070,-166.666666,0.00025812,2]
[314235359,1708111842080,-187.27589185,0.00026353,2]
[314235360,1708111842089,-166.666666,0.00026388,2]
[314235361,1708111842099,-285.55150187,0.00026506,3]
[314235362,1708111842108,-180.07287096,0.00026506,3]
[314235363,1708111842118,-553.50664743,0.00026506,3]
[314235364,1708111842127,-166.05199423,0.00026506,3]
[314235365,1708111842137,-153.3863894,0.00026656,2]
[314235366,1708111842147,-166.666666,0.00026965,2]
[314235367,1708111842157,-694.49,0.00027397,2]
[314235368,1708111842167,-500.0,0.00027397,2]
[314235369,1708111842177,-500.0,0.00027397,2]
[314235370,1708111842187,-500.0,0.00027397,2]
[314235371,1708111842197,-500.0,0.00027397,2]
[314235372,1708111842207,-500.0,0.00027397,2]
[314235373,1708111842216,-807.13,0.00027397,2]
[314235374,1708111842227,-1569.4,0.00027397,2]
[314235375,1708111842237,-500.0,0.00027397,2]
[314235376,1708111842246,-765.3,0.00027397,2]
[314235377,1708111842255,-945.01,0.00027397,2]
[314235378,1708111842265,-492.80287904,0.00027397,2]
[314235379,1708111842275,-455.93175388,0.00027397,2]
[314235380,1708111842285,-974.19,0.00027397,2]
[314235381,1708111842294,-500.0,0.00027397,2]
[314235382,1708111842306,-1467.07,0.00027397,2]
[314235383,1708111842316,-1000.0,0.00027397,2]
[314235384,1708111842327,-500.0,0.00027397,2]
[314235385,1708111842336,-500.0,0.00027397,2]
[314235386,1708111842347,-637.16,0.00027397,2]
[314235387,1708111842356,-500.0,0.00027397,2]
[314235388,1708111842366,-500.0,0.00027397,2]
[314235389,1708111842376,-570.52,0.00027397,2]
[314235390,1708111842385,-500.0,0.00027397,2]
[314235391,1708111842395,-500.0,0.00027397,2]
[314235392,1708111842404,-500.0,0.00027397,2]
[314235393,1708111842414,-519.62351399,0.00027397,2]
[314235394,1708111842423,-2992.98,0.00027397,2]
[314235395,1708111842432,-500.0,0.00027397,2]
[314235396,1708111842441,-1257.29,0.00027397,2]
[314235397,1708111842451,-155.0,0.00027397,2]
[314235398,1708111842461,-1291.21,0.00027397,2]
[314235399,1708111842470,-201.32453431,0.00027397,2]
[314235400,1708111842480,-1293.32,0.00027397,2]
[314235401,1708111842490,-9210.28,0.00027397,2]
[314235402,1708111842500,-1388.64,0.00027397,2]
[314235403,1708111842510,-500.0,0.00027397,2]
[314235404,1708111842519,-6992.33,0.00027397,2]
[314235405,1708111842529,-500.0,0.00027397,2]
[314235406,1708111842538,-794.7,0.00027397,2]
[314235407,1708111842548,-846.8,0.00027397,2]
[314235408,1708111842558,-1016.14,0.00027397,2]
[314235409,1708111842567,-824.39,0.00027397,2]
[314235410,1708111842577,-1241.02,0.00027397,2]
[314235411,1708111842587,-368.42386236,0.00027397,2]
[314235426,1708112400421,-150.5,0.0003066,35]
[314235427,1708112400444,-150.5,0.0003067,35]
[314235428,1708112400467,-150.5,0.0003068,35]
[314235429,1708112400491,-150.5,0.00030928,35]
[314235430,1708112400516,-277.0,0.00030928,35]
[314235431,1708112400551,-2767.7,0.00030928,35]
[314235432,1708112400697,-569.3,0.00030928,35]
[314235433,1708112440886,150.5,0.0003066,35]
[314235434,1708112440978,249.0,0.0003068,35]
[314235435,1708112441420,249.0,0.0003067,35]
[314235436,1708112441970,249.0,0.0003066,35]
[314235437,1708112442846,165.01,0.0003068,35]
[314235438,1708112443697,2132.69,0.0003068,35]
[314235439,1708112525595,303.12639749,0.00022,30]
[314235556,1708113045726,-163.38875591,0.00021828,2]
[314235557,1708113045736,-7986.04480287,0.00021928,2]
[314235558,1708113045746,-292.67609375,0.00021928,2]
[314235559,1708113045756,-206.05712966,0.00021929,2]
[314235563,1708113265080,8388.46766418,0.00021,2]
[314235565,1708113545141,11378.875734,0.00021087,2]
[314235566,1708113655997,250.0,0.00021087,2]
[314235568,1708113657475,337.71953,0.00021087,2]
[314235569,1708113908346,774.80113539,0.00019828,2]
[314235570,1708114032292,7044.39726668,0.00020916,2]
[314235571,1708114032324,3503.96719652,0.00020916,2]
[314235572,1708114039593,152.1487591,0.00020874,2]
[314235573,1708114066790,196343.88404438,0.0002,5]
[314235574,1708114066819,2500.0,0.0002,5]
[314235575,1708114066846,100000.0,0.0002,5]
[314235579,1708114183261,3848.46518368,0.00019889,2]
[314235732,1708114237940,-4020.22,0.0001999,3]
[314235733,1708114237950,-1843.32182419,0.00019999,2]
[314236530,1708114245876,-492.5110451,0.0001999,3]
[314236537,1708114245934,-894.32162214,0.0001999,3]
[314236541,1708114245958,-1963.35733276,0.0001999,3]
[314236543,1708114245967,-6142.72297868,0.00019999,2]
[314236545,1708114245976,-6835.39152364,0.0002,5]
[314236547,1708114245988,-8855.91303883,0.0002,5]
[314236550,1708114246004,-305.53024882,0.0002,5]
[314239908,1708114285046,1151.53481632,0.000199,2]
[314240184,1708114377626,169.133355,0.00019178,2]
[314240185,1708114446350,5284.47492882,0.00019178,2]
[314240186,1708114466348,4546.39171618,0.00019178,2]
[314240187,1708114466377,738.08321264,0.00019178,2]
[314240188,1708114488356,5284.47492882,0.00019178,2]
[314240189,1708114506452,3977.44185854,0.00019178,2]
[314240190,1708114506484,1307.03307028,0.00019178,2]
[314240191,1708114510572,912.22663017,0.000189,2]
[314240192,1708114526361,5284.47492882,0.00019178,2]
[314240193,1708114535845,7496.26537073,0.00019379,2]
[314240194,1708114535875,11528.08601187,0.00019379,2]
[314240195,1708114542434,3471.91398813,0.00019178,2]
[314240196,1708114542463,1812.56094069,0.00019178,2]
[314240197,1708114560359,2527.04905435,0.00019178,2]
[314240198,1708114566821,10660.39000496,0.00019379,2]
[314240199,1708114566852,14239.60999504,0.00019379,2]
[314240200,1708114614765,1727.2228053,0.00019379,2]
[314240201,1708114627660,354.297254,0.00019171,2]